[Event "GER-ch Blitz 2019"]
[Site "Magdeburg"]
[Date "2019.05.25"]
[Round "17.5"]
[White "Koch, Thomas"]
[Black "Krause, Benedict"]
[Result "1-0"]
[ECO "D86"]
[WhiteElo "2474"]
[BlackElo "2434"]
[Annotator "ChessBase"]
[PlyCount "126"]
[EventDate "2019.05.25"]
[EventType "tourn"]
[EventCountry "GER"]
[Tiebreak "Number of wins+Number of black wins"]
[SourceTitle "playchess.com"]
[Source "ChessBase"]
[SourceQuality "1"]
[TimeControl "180+2"]

1. d4 {[%emt 0:00:00]} Nf6 {[%emt 0:00:00]} 2. c4 {[%emt 0:00:00]} g6 {[%emt 0:
00:00]} 3. Nc3 {[%emt 0:00:00]} d5 {[%emt 0:00:00]} 4. cxd5 {[%emt 0:00:01]}
Nxd5 {[%emt 0:00:01]} 5. e4 {[%emt 0:00:01]} Nxc3 {[%emt 0:00:01]} 6. bxc3 {
[%emt 0:00:02]} Bg7 {[%emt 0:00:01]} 7. Bc4 {[%emt 0:00:00]} c5 {[%emt 0:00:01]
} 8. Ne2 {[%emt 0:00:02]} Nc6 {[%emt 0:00:01]} 9. Be3 {[%emt 0:00:01]} O-O {
[%emt 0:00:02]} 10. O-O {[%emt 0:00:01]} Bg4 {[%emt 0:00:01]} 11. f3 {[%emt 0:
00:01]} Bd7 {[%emt 0:00:01]} 12. Rc1 {[%emt 0:00:02]} Qc7 {[%emt 0:00:11]} 13.
Qd2 {[%emt 0:00:02]} Rad8 {[%emt 0:00:17]} 14. Bh6 {[%emt 0:00:11]} cxd4 {
[%emt 0:00:20]} 15. Bxg7 {[%emt 0:00:01]} Kxg7 {[%emt 0:00:01]} 16. cxd4 {
[%emt 0:00:02]} Qa5 {[%emt 0:00:02]} 17. Qb2 {[%emt 0:00:09]} Qb4 {[%emt 0:00:
45]} 18. Qxb4 {[%emt 0:00:01]} Nxb4 {[%emt 0:00:01]} 19. Rb1 {[%emt 0:00:01]}
a5 {[%emt 0:00:08]} 20. a3 {[%emt 0:00:01]} Nc2 {[%emt 0:00:00]} 21. Rxb7 {
[%emt 0:00:08]} Bc8 {[%emt 0:01:15]} 22. Rxe7 {[%emt 0:00:08]} Ne3 {[%emt 0:00:
01]} 23. Rc1 {[%emt 0:00:09]} Nxc4 {[%emt 0:00:01]} 24. Rxc4 {[%emt 0:00:01]}
Ba6 {[%emt 0:00:00]} 25. Rc2 {[%emt 0:00:02]} Bxe2 26. Rxe2 {[%emt 0:00:01]}
Rxd4 {[%emt 0:00:03]} 27. e5 {[%emt 0:00:05]} Kg8 {[%emt 0:00:04]} 28. Ra7 {
[%emt 0:00:04]} Ra4 {[%emt 0:00:04]} 29. Re3 {[%emt 0:00:02]} Rc8 {[%emt 0:00:
08]} 30. Kf2 {[%emt 0:00:03]} Re8 {[%emt 0:00:12]} 31. Kg3 {[%emt 0:00:07]} Re6
{[%emt 0:00:03]} 32. f4 {[%emt 0:00:05]} Re8 {[%emt 0:00:08]} 33. Kf3 {[%emt 0:
00:02]} h5 {[%emt 0:00:02]} 34. Kg3 {[%emt 0:00:07]} Re6 {[%emt 0:00:00]} 35.
Rd3 {[%emt 0:00:07]} g5 {[%emt 0:00:01]} 36. fxg5 {[%emt 0:00:11]} Rxe5 {
[%emt 0:00:01]} 37. h4 {[%emt 0:00:00]} Rg4+ {[%emt 0:00:02]} 38. Kh3 {[%emt 0:
00:01]} Ra4 {[%emt 0:00:02]} 39. g6 {[%emt 0:00:05]} Rf5 {[%emt 0:00:02]} 40.
Rg3 {[%emt 0:00:06]} fxg6 {[%emt 0:00:08]} 41. Rxg6+ {[%emt 0:00:01]} Kf8 {
[%emt 0:00:01]} 42. Rg3 Rff4 43. Rb3 {[%emt 0:00:34]} Rxh4+ {[%emt 0:00:02]}
44. Kg3 {[%emt 0:00:00]} Rhg4+ {[%emt 0:00:01]} 45. Kh2 {[%emt 0:00:01]} Rae4 {
[%emt 0:00:03]} 46. Rxa5 h4 {[%emt 0:00:01]} 47. Ra7 {[%emt 0:00:10]} Re7 {
[%emt 0:00:02]} 48. Rf3+ {[%emt 0:00:10]} Ke8 {[%emt 0:00:01]} 49. Rxe7+ {
[%emt 0:00:04]} Kxe7 {[%emt 0:00:00]} 50. Kh3 {[%emt 0:00:01]} Ra4 {[%emt 0:00:
00]} 51. Rf2 {[%emt 0:00:14]} Ke6 {[%emt 0:00:04]} 52. Rf3 {[%emt 0:00:05]} Ke5
{[%emt 0:00:03]} 53. Kh2 {[%emt 0:00:07]} Ke6 {[%emt 0:00:02]} 54. Kg1 {
[%emt 0:00:02]} Ke5 {[%emt 0:00:03]} 55. Kf2 {[%emt 0:00:01]} Ke6 {[%emt 0:00:
02]} 56. Ke2 {[%emt 0:00:01]} Rg4 {[%emt 0:00:01]} 57. Re3+ {[%emt 0:00:05]}
Kf6 {[%emt 0:00:02]} 58. Kf3 {[%emt 0:00:04]} Ra4 {[%emt 0:00:01]} 59. Kf2 {
[%emt 0:00:03]} Kg5 {[%emt 0:00:01]} 60. Kf1 {[%emt 0:00:03]} Rf4+ {[%emt 0:00:
04]} 61. Ke1 {[%emt 0:00:07]} Rg4 {[%emt 0:00:07]} 62. Re5+ {[%emt 0:00:22]}
Kf4 {[%emt 0:00:08]} 63. Re2 {[%emt 0:00:03]} Kg3 {[%emt 0:00:00]} 1-0

[Event "GER-ch Blitz 2019"]
[Site "Magdeburg"]
[Date "2019.05.25"]
[Round "17.6"]
[White "Schneider, Ilja"]
[Black "Baskin, Robert"]
[Result "1-0"]
[ECO "A45"]
[WhiteElo "2494"]
[BlackElo "2398"]
[Annotator "ChessBase"]
[PlyCount "75"]
[EventDate "2019.05.25"]
[EventType "tourn"]
[EventCountry "GER"]
[Tiebreak "Number of wins+Number of black wins"]
[SourceTitle "playchess.com"]
[Source "ChessBase"]
[SourceQuality "1"]
[TimeControl "180+2"]

1. d4 {[%emt 0:00:00]} Nf6 {[%emt 0:00:00]} 2. Bg5 {[%emt 0:00:01]} e6 {
[%emt 0:00:03]} 3. e4 {[%emt 0:00:00]} h6 {[%emt 0:00:01]} 4. Bxf6 {[%emt 0:00:
01]} Qxf6 {[%emt 0:00:01]} 5. Nc3 {[%emt 0:00:01]} d6 {[%emt 0:00:01]} 6. Qd2 {
[%emt 0:00:01]} g6 {[%emt 0:00:04]} 7. f4 {[%emt 0:00:01]} Qe7 {[%emt 0:00:02]}
8. O-O-O {[%emt 0:00:03]} Bg7 {[%emt 0:00:01]} 9. g4 {[%emt 0:00:06]} Nc6 {
[%emt 0:00:04]} 10. Nf3 {[%emt 0:00:06]} g5 {[%emt 0:00:43]} 11. f5 {[%emt 0:
00:03]} Bd7 {[%emt 0:00:01]} 12. Qf2 {[%emt 0:00:46]} h5 {[%emt 0:00:23]} 13.
Bh3 {[%emt 0:00:27]} b6 {[%emt 0:00:06]} 14. gxh5 {[%emt 0:00:29]} O-O-O {
[%emt 0:00:14]} 15. d5 {[%emt 0:00:19]} Ne5 {[%emt 0:00:06]} 16. fxe6 {[%emt 0:
00:08]} fxe6 {[%emt 0:00:05]} 17. dxe6 {[%emt 0:00:01]} Bxe6 {[%emt 0:00:15]}
18. Nd5 {[%emt 0:00:11]} Qf7 {[%emt 0:00:01]} 19. Bxe6+ {[%emt 0:00:08]} Qxe6 {
[%emt 0:00:02]} 20. Nxg5 {[%emt 0:00:06]} Qh6 {[%emt 0:00:41]} 21. h4 {[%emt 0:
00:17]} Rhf8 {[%emt 0:00:02]} 22. Qe2 {[%emt 0:00:03]} Kb7 {[%emt 0:00:20]} 23.
Rdf1 {[%emt 0:00:04]} c6 {[%emt 0:00:04]} 24. Ne3 {[%emt 0:00:06]} Qh8 {
[%emt 0:00:08]} 25. Nf5 {[%emt 0:00:04]} Rde8 {[%emt 0:00:06]} 26. Nxd6+ {
[%emt 0:00:03]} Kc7 {[%emt 0:00:02]} 27. Nxe8+ {[%emt 0:00:01]} Rxe8 {[%emt 0:
00:00]} 28. Nf7 {[%emt 0:00:03]} Qg8 {[%emt 0:00:04]} 29. Nxe5 {[%emt 0:00:04]}
Bxe5 {[%emt 0:00:13]} 30. Kb1 {[%emt 0:00:01]} a5 {[%emt 0:00:03]} 31. Qa6 {
[%emt 0:00:02]} Ra8 {[%emt 0:00:00]} 32. Qe2 {[%emt 0:00:02]} a4 {[%emt 0:00:
01]} 33. a3 {[%emt 0:00:01]} b5 {[%emt 0:00:01]} 34. Rhg1 {[%emt 0:00:01]} Qe6
{[%emt 0:00:01]} 35. Qg4 {[%emt 0:00:02]} Qd6 {[%emt 0:00:02]} 36. Rf7+ {
[%emt 0:00:02]} Kb6 {[%emt 0:00:01]} 37. Qd7 {[%emt 0:00:02]} Qc5 {[%emt 0:00:
01]} 38. Qb7+ {[%emt 0:00:02]} 1-0

[Event "GER-ch Blitz 2019"]
[Site "Magdeburg"]
[Date "2019.05.25"]
[Round "17.7"]
[White "Buhmann, Rainer"]
[Black "Carow, Johannes"]
[Result "1-0"]
[ECO "B10"]
[WhiteElo "2573"]
[BlackElo "2445"]
[Annotator "ChessBase"]
[PlyCount "143"]
[EventDate "2019.05.25"]
[EventType "tourn"]
[EventCountry "GER"]
[Tiebreak "Number of wins+Number of black wins"]
[SourceTitle "playchess.com"]
[Source "ChessBase"]
[SourceQuality "1"]
[TimeControl "180+2"]

1. e4 {[%emt 0:00:00]} c6 {[%emt 0:00:00]} 2. Nc3 {[%emt 0:00:01]} d5 {[%emt 0:
00:00]} 3. Nf3 {[%emt 0:00:01]} Nf6 {[%emt 0:00:02]} 4. e5 {[%emt 0:00:04]} Ne4
{[%emt 0:00:01]} 5. d4 {[%emt 0:00:15]} Nxc3 {[%emt 0:00:02]} 6. bxc3 {[%emt 0:
00:01]} c5 {[%emt 0:00:01]} 7. Be3 {[%emt 0:00:20]} Nc6 {[%emt 0:00:15]} 8. Be2
{[%emt 0:00:16]} Bg4 {[%emt 0:00:22]} 9. Rb1 {[%emt 0:00:20]} Rb8 {[%emt 0:00:
13]} 10. O-O {[%emt 0:00:36]} e6 {[%emt 0:00:03]} 11. dxc5 {[%emt 0:00:04]} Be7
{[%emt 0:00:22]} 12. Nd4 {[%emt 0:00:06]} Bxe2 {[%emt 0:00:07]} 13. Qxe2 {
[%emt 0:00:02]} Qd7 {[%emt 0:00:42]} 14. Qb5 {[%emt 0:00:40]} a6 {[%emt 0:00:
53]} 15. Qa4 {[%emt 0:00:10]} Rc8 {[%emt 0:00:17]} 16. Nxc6 {[%emt 0:00:06]}
Rxc6 {[%emt 0:00:01]} 17. Rb4 {[%emt 0:00:11]} O-O {[%emt 0:00:04]} 18. Rfb1 {
[%emt 0:00:02]} Rb8 {[%emt 0:00:02]} 19. h3 {[%emt 0:00:11]} b5 {[%emt 0:00:05]
} 20. cxb6 {[%emt 0:00:08]} Bxb4 {[%emt 0:00:02]} 21. cxb4 {[%emt 0:00:04]} Qc8
{[%emt 0:00:03]} 22. Bc5 {[%emt 0:00:02]} g6 {[%emt 0:00:04]} 23. h4 {[%emt 0:
00:01]} Rcxb6 {[%emt 0:00:00]} 24. Bxb6 {[%emt 0:00:02]} Rxb6 {[%emt 0:00:01]}
25. Qb3 {[%emt 0:00:01]} Rb5 {[%emt 0:00:01]} 26. Rc1 {[%emt 0:00:01]} a5 {
[%emt 0:00:01]} 27. a3 {[%emt 0:00:01]} axb4 28. axb4 Qb8 29. c3 {[%emt 0:00:
03]} Qxe5 {[%emt 0:00:02]} 30. c4 dxc4 {[%emt 0:00:02]} 31. Qxc4 {[%emt 0:00:
02]} Rb8 {[%emt 0:00:01]} 32. Rb1 {[%emt 0:00:01]} Rb5 {[%emt 0:00:04]} 33. g3
{[%emt 0:00:02]} Kg7 {[%emt 0:00:01]} 34. Qd3 {[%emt 0:00:02]} h5 {[%emt 0:00:
02]} 35. Kg2 {[%emt 0:00:01]} Qb8 {[%emt 0:00:02]} 36. Qd4+ {[%emt 0:00:01]} e5
{[%emt 0:00:03]} 37. Qc4 {[%emt 0:00:01]} Qb7+ {[%emt 0:00:01]} 38. Kg1 {
[%emt 0:00:00]} Qb6 {[%emt 0:00:01]} 39. Rb3 {[%emt 0:00:01]} Qb7 {[%emt 0:00:
01]} 40. Qc3 {[%emt 0:00:02]} Qd5 {[%emt 0:00:03]} 41. Rb1 {[%emt 0:00:01]} Qe4
{[%emt 0:00:02]} 42. Rb2 {[%emt 0:00:03]} Rd5 {[%emt 0:00:09]} 43. f3 {[%emt 0:
00:05]} Rd1+ {[%emt 0:00:05]} 44. Kf2 {[%emt 0:00:01]} Qd5 {[%emt 0:00:00]} 45.
Re2 {[%emt 0:00:02]} Rd3 {[%emt 0:00:01]} 46. Qxe5+ {[%emt 0:00:01]} Qxe5 {
[%emt 0:00:01]} 47. Rxe5 {[%emt 0:00:01]} Rb3 {[%emt 0:00:00]} 48. b5 {[%emt 0:
00:01]} Kf6 {[%emt 0:00:01]} 49. Rc5 {[%emt 0:00:01]} Ke6 {[%emt 0:00:01]} 50.
Ke2 {[%emt 0:00:02]} Kd6 {[%emt 0:00:02]} 51. Rc6+ {[%emt 0:00:02]} Kd7 {
[%emt 0:00:01]} 52. Rf6 {[%emt 0:00:01]} Ke7 {[%emt 0:00:00]} 53. Rb6 Kd7 54.
Rb8 {[%emt 0:00:03]} Ke7 {[%emt 0:00:01]} 55. b6 {[%emt 0:00:01]} Kf6 {[%emt 0:
00:03]} 56. Kd2 {[%emt 0:00:02]} Rxf3 {[%emt 0:00:02]} 57. Kc2 {[%emt 0:00:00]}
Rf5 {[%emt 0:00:04]} 58. Kc3 {[%emt 0:00:02]} Rf3+ {[%emt 0:00:03]} 59. Kc4 {
[%emt 0:00:01]} Rxg3 {[%emt 0:00:01]} 60. Rd8 {[%emt 0:00:02]} Rg1 {[%emt 0:00:
08]} 61. b7 {[%emt 0:00:02]} Rc1+ {[%emt 0:00:01]} 62. Kb5 {[%emt 0:00:04]}
Rb1+ {[%emt 0:00:01]} 63. Kc6 {[%emt 0:00:00]} g5 {[%emt 0:00:05]} 64. hxg5+ {
[%emt 0:00:07]} Kxg5 {[%emt 0:00:01]} 65. Rd5+ {[%emt 0:00:01]} f5 {[%emt 0:00:
03]} 66. Rb5 {[%emt 0:00:01]} Rc1+ {[%emt 0:00:01]} 67. Kd7 {[%emt 0:00:01]}
Rd1+ {[%emt 0:00:01]} 68. Ke7 {[%emt 0:00:00]} Re1+ {[%emt 0:00:02]} 69. Kf7 {
[%emt 0:00:01]} h4 {[%emt 0:00:01]} 70. b8=Q {[%emt 0:00:02]} Re4 {[%emt 0:00:
03]} 71. Qg8+ {[%emt 0:00:02]} Kf4 {[%emt 0:00:01]} 72. Qh7 {[%emt 0:00:01]}
1-0

[Event "GER-ch Blitz 2019"]
[Site "Magdeburg"]
[Date "2019.05.25"]
[Round "17.9"]
[White "Ehmann, Thilo"]
[Black "Stern, Rene"]
[Result "1/2-1/2"]
[ECO "C67"]
[WhiteElo "2291"]
[BlackElo "2538"]
[Annotator "ChessBase"]
[PlyCount "138"]
[EventDate "2019.05.25"]
[EventType "tourn"]
[EventCountry "GER"]
[Tiebreak "Number of wins+Number of black wins"]
[SourceTitle "playchess.com"]
[Source "ChessBase"]
[SourceQuality "1"]
[TimeControl "180+2"]

1. e4 {[%emt 0:00:00]} e5 {[%emt 0:00:00]} 2. Nf3 {[%emt 0:00:00]} Nc6 {
[%emt 0:00:00]} 3. Bb5 {[%emt 0:00:04]} Nf6 {[%emt 0:00:00]} 4. O-O {[%emt 0:
00:02]} Nxe4 {[%emt 0:00:02]} 5. d4 {[%emt 0:00:05]} Nd6 {[%emt 0:00:01]} 6.
Bxc6 {[%emt 0:00:01]} dxc6 {[%emt 0:00:01]} 7. dxe5 {[%emt 0:00:01]} Nf5 {
[%emt 0:00:02]} 8. Qxd8+ {[%emt 0:00:01]} Kxd8 {[%emt 0:00:01]} 9. h3 {[%emt 0:
00:04]} Be7 {[%emt 0:00:01]} 10. Rd1+ {[%emt 0:00:12]} Ke8 {[%emt 0:00:01]} 11.
Bg5 {[%emt 0:00:12]} Bxg5 {[%emt 0:00:09]} 12. Nxg5 {[%emt 0:00:01]} h6 {
[%emt 0:00:01]} 13. Nf3 {[%emt 0:00:01]} Be6 {[%emt 0:00:01]} 14. Nc3 {[%emt 0:
00:01]} h5 {[%emt 0:00:18]} 15. Rd2 {[%emt 0:00:15]} Rd8 {[%emt 0:00:16]} 16.
Rxd8+ {[%emt 0:00:26]} Kxd8 {[%emt 0:00:01]} 17. Rd1+ {[%emt 0:00:21]} Ke7 {
[%emt 0:00:01]} 18. Ng5 {[%emt 0:00:02]} g6 {[%emt 0:00:16]} 19. g4 {[%emt 0:
00:20]} hxg4 {[%emt 0:00:06]} 20. hxg4 {[%emt 0:00:00]} Ng7 {[%emt 0:00:55]}
21. f3 {[%emt 0:00:02]} b6 {[%emt 0:00:06]} 22. Kg2 {[%emt 0:00:04]} f6 {
[%emt 0:00:14]} 23. exf6+ {[%emt 0:00:16]} Kxf6 {[%emt 0:00:01]} 24. Nxe6 {
[%emt 0:00:04]} Nxe6 {[%emt 0:00:02]} 25. Rd7 {[%emt 0:00:15]} g5 {[%emt 0:00:
05]} 26. Ne4+ {[%emt 0:00:01]} Ke5 {[%emt 0:00:02]} 27. Re7 {[%emt 0:00:11]}
Rg8 {[%emt 0:00:07]} 28. b4 {[%emt 0:00:13]} Rg6 {[%emt 0:00:02]} 29. a3 {
[%emt 0:00:05]} Kd4 {[%emt 0:00:09]} 30. Kg3 {[%emt 0:00:10]} a5 {[%emt 0:00:
13]} 31. bxa5 bxa5 {[%emt 0:00:01]} 32. Rf7 {[%emt 0:00:14]} a4 {[%emt 0:00:08]
} 33. Rf5 {[%emt 0:00:01]} c5 {[%emt 0:00:00]} 34. c3+ {[%emt 0:00:05]} Kc4 {
[%emt 0:00:02]} 35. Re5 {[%emt 0:00:02]} Kb3 {[%emt 0:00:04]} 36. Nxc5+ Nxc5 {
[%emt 0:00:01]} 37. Rxc5 {[%emt 0:00:03]} c6 {[%emt 0:00:02]} 38. f4 {[%emt 0:
00:03]} gxf4+ 39. Kxf4 Kxa3 {[%emt 0:00:02]} 40. Kf5 {[%emt 0:00:01]} Rd6 {
[%emt 0:00:05]} 41. g5 {[%emt 0:00:01]} Kb3 {[%emt 0:00:02]} 42. g6 {[%emt 0:
00:03]} a3 {[%emt 0:00:00]} 43. g7 {[%emt 0:00:03]} Rd8 {[%emt 0:00:01]} 44.
Rxc6 {[%emt 0:00:02]} a2 {[%emt 0:00:23]} 45. Ra6 {[%emt 0:00:01]} Rc8 {
[%emt 0:00:05]} 46. Kf6 {[%emt 0:00:04]} Kb2 {[%emt 0:00:17]} 47. Kf7 {[%emt 0:
00:01]} Rc7+ {[%emt 0:00:01]} 48. Kg8 Rc8+ 49. Kh7 {[%emt 0:00:03]} Rc7 {
[%emt 0:00:00]} 50. Kh8 {[%emt 0:00:01]} Rc6 {[%emt 0:00:02]} 51. Ra7 {[%emt 0:
00:05]} Rh6+ {[%emt 0:00:02]} 52. Kg8 {[%emt 0:00:01]} Rf6 {[%emt 0:00:01]} 53.
Kh7 {[%emt 0:00:02]} Rf7 {[%emt 0:00:02]} 54. Rxf7 {[%emt 0:00:02]} a1=Q {
[%emt 0:00:02]} 55. g8=Q {[%emt 0:00:05]} Qh1+ {[%emt 0:00:01]} 56. Kg7 {
[%emt 0:00:03]} Qg2+ {[%emt 0:00:01]} 57. Kh8 {[%emt 0:00:04]} Qh2+ {[%emt 0:
00:03]} 58. Qh7 {[%emt 0:00:05]} Qe5+ {[%emt 0:00:00]} 59. Qg7 {[%emt 0:00:05]}
Qe8+ {[%emt 0:00:05]} 60. Kh7 {[%emt 0:00:06]} Qe4+ {[%emt 0:00:01]} 61. Qg6 {
[%emt 0:00:00]} Qh4+ {[%emt 0:00:01]} 62. Kg7 {[%emt 0:00:01]} Qc4 {[%emt 0:00:
04]} 63. Rb7+ {[%emt 0:00:01]} Kc1 {[%emt 0:00:02]} 64. Qg5+ {[%emt 0:00:01]}
Kc2 {[%emt 0:00:01]} 65. Qg2+ {[%emt 0:00:02]} Kd1 {[%emt 0:00:01]} 66. Qb2 {
[%emt 0:00:00]} Ke1 {[%emt 0:00:01]} 67. Rd7 Kf1 {[%emt 0:00:01]} 68. Qd2 {
[%emt 0:00:02]} Kg1 69. Qf2+ {[%emt 0:00:00]} Kh1 {[%emt 0:00:02]} 1/2-1/2

[Event "GER-ch Blitz 2019"]
[Site "Magdeburg"]
[Date "2019.05.25"]
[Round "17.10"]
[White "Hirneise, Jens"]
[Black "Kopylov, Michael"]
[Result "1-0"]
[ECO "B03"]
[WhiteElo "2375"]
[BlackElo "2413"]
[Annotator "NA"]
[PlyCount "71"]
[EventDate "2019.05.25"]
[EventType "tourn"]
[EventCountry "GER"]
[Tiebreak "Number of wins+Number of black wins"]
[SourceTitle "playchess.com"]
[Source "ChessBase"]
[SourceQuality "1"]
[TimeControl "180+2"]

1. e4 {[%emt 0:00:00]} Nf6 {[%emt 0:00:00]} 2. e5 {[%emt 0:00:00]} Nd5 {
[%emt 0:00:00]} 3. d4 d6 4. c4 Nb6 5. exd6 {[%emt 0:00:03]} exd6 {[%emt 0:00:
01]} 6. Nc3 {[%emt 0:00:03]} Be7 {[%emt 0:00:01]} 7. h3 {[%emt 0:00:01]} Nc6 {
[%emt 0:00:02]} 8. Nf3 {[%emt 0:00:04]} O-O {[%emt 0:00:03]} 9. Bd3 {[%emt 0:
00:05]} d5 {[%emt 0:00:08]} 10. c5 {[%emt 0:00:03]} Nc4 {[%emt 0:00:01]} 11.
O-O {[%emt 0:00:12]} b6 {[%emt 0:00:01]} 12. b3 {[%emt 0:00:17]} N4a5 {[%emt 0:
00:05]} 13. cxb6 {[%emt 0:00:11]} axb6 {[%emt 0:00:01]} 14. Bb2 {[%emt 0:00:14]
} Ba6 {[%emt 0:00:12]} 15. Rc1 {[%emt 0:00:12]} Bxd3 {[%emt 0:00:19]} 16. Qxd3
{[%emt 0:00:02]} Qd7 {[%emt 0:00:29]} 17. Rfe1 {[%emt 0:00:24]} Bf6 {[%emt 0:
00:03]} 18. Qb5 {[%emt 0:00:14]} Rfd8 {[%emt 0:00:26]} 19. b4 {[%emt 0:00:11]}
Nc4 {[%emt 0:00:23]} 20. Nxd5 {[%emt 0:00:22]} Nxb2 {[%emt 0:00:51]} 21. Nxf6+
gxf6 {[%emt 0:00:01]} 22. Rxc6 {[%emt 0:00:18]} Nd3 {[%emt 0:00:12]} 23. Qxd3 {
[%emt 0:00:35]} Qxc6 24. Nh4 Re8 {[%emt 0:00:11]} 25. Rxe8+ {[%emt 0:00:06]}
Rxe8 {[%emt 0:00:00]} 26. Nf5 {[%emt 0:00:01]} Qc1+ {[%emt 0:00:07]} 27. Kh2 {
[%emt 0:00:04]} Qf4+ {[%emt 0:00:00]} 28. Ng3 {[%emt 0:00:06]} Rd8 {[%emt 0:00:
09]} 29. d5 {[%emt 0:00:02]} Qe5 {[%emt 0:00:03]} 30. Kg1 {[%emt 0:00:07]} Rxd5
{[%emt 0:00:03]} 31. Qc2 {[%emt 0:00:00]} c5 {[%emt 0:00:06]} 32. bxc5 {
[%emt 0:00:03]} Rxc5 {[%emt 0:00:00]} 33. Qd1 {[%emt 0:00:01]} Qf4 34. Qd8+ Kg7
35. Nf1 Rc1 36. Qd3 1-0

[Event "GER-ch Blitz 2019"]
[Site "Magdeburg"]
[Date "2019.05.25"]
[Round "17.11"]
[White "Kirchner, Thomas"]
[Black "Frischmann, Rick"]
[Result "0-1"]
[ECO "B30"]
[WhiteElo "2311"]
[BlackElo "2320"]
[Annotator "NA"]
[PlyCount "86"]
[EventDate "2019.05.25"]
[EventType "tourn"]
[EventCountry "GER"]
[Tiebreak "Number of wins+Number of black wins"]
[SourceTitle "playchess.com"]
[Source "ChessBase"]
[SourceQuality "1"]
[TimeControl "180+2"]

1. e4 {[%emt 0:00:00]} c5 {[%emt 0:00:00]} 2. Nf3 {[%emt 0:00:00]} Nc6 {
[%emt 0:00:00]} 3. Bc4 {[%emt 0:00:01]} e6 {[%emt 0:00:35]} 4. O-O {[%emt 0:00:
03]} d5 {[%emt 0:00:01]} 5. exd5 {[%emt 0:00:03]} exd5 {[%emt 0:00:01]} 6. Bb5
{[%emt 0:00:01]} Nf6 {[%emt 0:00:03]} 7. d4 {[%emt 0:00:02]} Be7 {[%emt 0:00:
03]} 8. c3 {[%emt 0:00:01]} O-O {[%emt 0:00:02]} 9. h3 {[%emt 0:00:01]} Qb6 {
[%emt 0:00:04]} 10. Ba4 {[%emt 0:00:07]} cxd4 {[%emt 0:00:02]} 11. cxd4 {
[%emt 0:00:02]} h6 {[%emt 0:00:08]} 12. Nc3 {[%emt 0:00:02]} Bf5 {[%emt 0:00:
02]} 13. Bb3 {[%emt 0:00:13]} Rad8 {[%emt 0:00:04]} 14. Re1 {[%emt 0:00:02]}
Bb4 {[%emt 0:00:05]} 15. Bf4 {[%emt 0:00:17]} Na5 {[%emt 0:00:03]} 16. Bc2 {
[%emt 0:00:05]} Bxc2 {[%emt 0:00:01]} 17. Qxc2 {[%emt 0:00:01]} Nc4 {[%emt 0:
00:01]} 18. Red1 {[%emt 0:00:09]} Rc8 {[%emt 0:00:04]} 19. Na4 {[%emt 0:01:08]}
Qb5 {[%emt 0:00:22]} 20. Qb3 {[%emt 0:00:01]} Na5 {[%emt 0:00:12]} 21. Qd3 {
[%emt 0:00:27]} Qxa4 {[%emt 0:00:03]} 22. Be5 {[%emt 0:00:02]} Ne4 {[%emt 0:00:
06]} 23. b3 {[%emt 0:00:04]} Qc6 {[%emt 0:00:01]} 24. Qe3 {[%emt 0:00:01]} Qe6
{[%emt 0:00:07]} 25. Bf4 {[%emt 0:00:07]} Rc3 {[%emt 0:00:02]} 26. Qe2 {
[%emt 0:00:01]} a6 {[%emt 0:00:11]} 27. Ne5 {[%emt 0:00:05]} Nc6 {[%emt 0:00:
07]} 28. Nf3 {[%emt 0:00:05]} Re8 {[%emt 0:00:02]} 29. Be3 {[%emt 0:00:04]} Bd6
{[%emt 0:00:05]} 30. Qb2 {[%emt 0:00:04]} Nb4 {[%emt 0:00:12]} 31. Ne1 {
[%emt 0:00:09]} Rec8 {[%emt 0:00:07]} 32. a3 {[%emt 0:00:04]} Nc2 {[%emt 0:00:
02]} 33. Rac1 {[%emt 0:00:02]} Nxe3 {[%emt 0:00:02]} 34. fxe3 {[%emt 0:00:06]}
Rxc1 {[%emt 0:00:04]} 35. Rxc1 {[%emt 0:00:01]} Rxc1 {[%emt 0:00:03]} 36. Qxc1
{[%emt 0:00:00]} Ng3 {[%emt 0:00:01]} 37. Qd2 {[%emt 0:00:13]} Qf5 {[%emt 0:00:
04]} 38. Nf3 {[%emt 0:00:08]} Qb1+ {[%emt 0:00:02]} 39. Ne1 {[%emt 0:00:02]}
Qxb3 {[%emt 0:00:02]} 40. Nd3 {[%emt 0:00:05]} Qb1+ {[%emt 0:00:06]} 41. Ne1 {
[%emt 0:00:03]} Bxa3 {[%emt 0:00:06]} 42. Qf2 {[%emt 0:00:03]} Bb4 {[%emt 0:00:
04]} 43. Qxg3 {[%emt 0:00:02]} Qxe1+ {[%emt 0:00:01]} 0-1

[Event "GER-ch Blitz 2019"]
[Site "Magdeburg"]
[Date "2019.05.25"]
[Round "17.12"]
[White "Zuyev, Igor"]
[Black "Heidrich, Manfred"]
[Result "1-0"]
[ECO "B23"]
[WhiteElo "2447"]
[BlackElo "2351"]
[Annotator "NA"]
[PlyCount "56"]
[EventDate "2019.05.25"]
[EventType "tourn"]
[EventCountry "GER"]
[Tiebreak "Number of wins+Number of black wins"]
[SourceTitle "playchess.com"]
[Source "ChessBase"]
[SourceQuality "1"]
[TimeControl "180+2"]

1. e4 {[%emt 0:00:00]} c5 {[%emt 0:00:00]} 2. Nc3 {[%emt 0:00:00]} Nc6 {
[%emt 0:00:01]} 3. f4 {[%emt 0:00:02]} e6 {[%emt 0:00:01]} 4. Nf3 {[%emt 0:00:
16]} d5 {[%emt 0:00:01]} 5. Bb5 {[%emt 0:00:04]} Nf6 {[%emt 0:00:02]} 6. e5 {
[%emt 0:00:06]} Nd7 {[%emt 0:00:01]} 7. Bxc6 {[%emt 0:00:05]} bxc6 {[%emt 0:00:
01]} 8. d3 {[%emt 0:00:03]} Be7 {[%emt 0:00:03]} 9. O-O {[%emt 0:00:05]} O-O {
[%emt 0:00:02]} 10. Re1 {[%emt 0:00:05]} Re8 {[%emt 0:00:05]} 11. Ne2 {[%emt 0:
00:07]} f6 {[%emt 0:00:03]} 12. b3 {[%emt 0:00:07]} Rb8 {[%emt 0:00:13]} 13.
Bb2 {[%emt 0:00:05]} Ba6 {[%emt 0:00:18]} 14. Ng3 {[%emt 0:00:07]} c4 {[%emt 0:
00:10]} 15. exf6 {[%emt 0:00:07]} Bxf6 {[%emt 0:00:01]} 16. Bxf6 {[%emt 0:00:
05]} Qxf6 {[%emt 0:00:03]} 17. dxc4 {[%emt 0:00:09]} Qxf4 {[%emt 0:00:11]} 18.
Nd4 {[%emt 0:00:07]} Qd6 {[%emt 0:00:06]} 19. Qg4 {[%emt 0:00:06]} Nf8 {
[%emt 0:00:09]} 20. Nh5 {[%emt 0:00:07]} Re7 {[%emt 0:00:06]} 21. Qg3 {[%emt 0:
00:08]} Qxg3 {[%emt 0:00:08]} 22. Nxg3 {[%emt 0:00:04]} Bb7 {[%emt 0:00:12]}
23. Ngf5 {[%emt 0:00:06]} Rf7 {[%emt 0:00:29]} 24. Nd6 {[%emt 0:00:07]} Rd7 {
[%emt 0:00:15]} 25. c5 {[%emt 0:00:05]} Re7 {[%emt 0:00:23]} 26. Re5 {[%emt 0:
00:06]} Ba8 {[%emt 0:00:15]} 27. Rf1 {[%emt 0:00:06]} Nd7 {[%emt 0:00:06]} 28.
N4f5 {[%emt 0:00:08]} Rf7 {[%emt 0:00:16]} 1-0